bitfinex/quotes_BTCUSD_20241116
["timestamp","ask_amount","ask_price","bid_price","bid_amount"]
[1731781811159,0.00125386,91182.0,91169.0,0.219372]
[1731781811380,0.109675,91179.0,91170.0,0.329055]
[1731781811609,0.109674,91179.0,91167.0,0.219377]
[1731781811830,0.00125386,91182.0,91173.0,0.10968]
[1731781811831,0.109673,91180.0,91173.0,0.10968]
[1731781812012,0.109673,91180.0,91174.0,0.10968]
[1731781812713,0.1259,91189.0,91188.0,0.109663]
[1731781812922,0.1259,91189.0,91188.0,0.2115857]
[1731781813179,0.1259,91189.0,91188.0,0.2093929]
[1731781813380,0.1259,91189.0,91188.0,0.00065269]
[1731781813597,0.1259,91189.0,91188.0,0.11031569]
[1731781813806,0.1259,91189.0,91188.0,0.11750866]
[1731781814045,0.1259,91189.0,91188.0,0.11531569]
[1731781816086,0.0799,91189.0,91188.0,0.11531569]
[1731781816333,0.16495752,91205.0,91189.0,0.109662]
[1731781818062,0.16495752,91205.0,91189.0,0.11185476]
[1731781820081,0.16495752,91205.0,91189.0,0.109662]
[1731781820298,0.16495752,91212.0,91189.0,0.32701485]
[1731781820512,0.16495752,91212.0,91189.0,0.22747069]
[1731781820743,0.16495752,91212.0,91189.0,0.53497147]
[1731781821021,0.16495752,91212.0,91189.0,0.22747069]
[1731781821267,0.16495752,91212.0,91189.0,0.53363026]
[1731781821493,0.16495752,91212.0,91201.0,0.11839314]
[1731781821704,0.16495752,91212.0,91201.0,0.32937803]
[1731781821934,0.16495752,91212.0,91201.0,0.32718559]
[1731781822847,0.16495752,91212.0,91201.0,0.38863323]
[1731781823062,0.16495752,91212.0,91201.0,0.3575149]
[1731781823279,0.16495752,91212.0,91201.0,0.32718559]
[1731781825535,0.16495752,91212.0,91201.0,0.37232789]
[1731781826640,0.0008576,91215.0,91201.0,0.37232789]
[1731781828680,0.0008576,91215.0,91213.0,0.12037914]
[1731781828908,0.0008576,91215.0,91213.0,0.32717159]
[1731781829812,0.0008576,91215.0,91213.0,0.35685742]
[1731781830053,0.0008576,91215.0,91213.0,0.36060356]
[1731781830277,0.0008576,91215.0,91213.0,0.39473323]
[1731781832294,0.0008576,91215.0,91213.0,0.32717159]
[1731781832520,0.0008576,91215.0,91213.0,0.36130126]
[1731781832763,0.2,91224.0,91223.0,0.005]
[1731781832989,0.0008573,91227.0,91226.0,0.00874614]
[1731781833217,0.0008573,91227.0,91226.0,0.29402259]
[1731781833432,0.16502468,91249.0,91230.0,0.11835914]
[1731781833646,0.16502468,91249.0,91230.0,0.49347839]
[1731781833858,0.24324783,91231.0,91230.0,0.49347839]
[1731781834313,0.24324783,91231.0,91230.0,0.49547839]
[1731781834550,6.716e-05,91249.0,91234.0,0.12035414]
[1731781834795,6.716e-05,91249.0,91240.0,0.32913959]
[1731781835020,6.716e-05,91249.0,91240.0,0.40421925]
[1731781835241,6.716e-05,91249.0,91240.0,0.30448935]
[1731781835458,6.716e-05,91249.0,91240.0,0.40421925]
[1731781835689,6.716e-05,91249.0,91244.0,0.11834214]
[1731781835894,6.716e-05,91249.0,91244.0,0.22940469]
[1731781836113,0.20042014,91245.0,91244.0,0.30403279]
[1731781836562,0.20042014,91245.0,91244.0,0.30203279]
[1731781836799,0.20042014,91245.0,91244.0,0.22740469]
[1731781837012,0.20042014,91245.0,91244.0,0.27165266]
[1731781837452,0.20042014,91245.0,91244.0,0.31105346]
[1731781837906,0.20042014,91245.0,91244.0,0.26790652]
[1731781842790,0.20127664,91245.0,91244.0,0.26790652]
[1731781844148,0.2008565,91245.0,91244.0,0.26790652]
[1731781845105,0.2008565,91245.0,91244.0,0.15884397]
[1731781845341,0.2238565,91245.0,91244.0,0.15384397]
[1731781845766,0.17456853,91245.0,91244.0,0.15384397]
[1731781845996,0.17456853,91245.0,91244.0,0.109596]
[1731781848543,0.17456853,91245.0,91244.0,0.22585019]
[1731781848544,0.15156853,91245.0,91244.0,0.22585019]
[1731781848768,0.15156853,91245.0,91244.0,0.22365855]
[1731781850811,0.15156853,91245.0,91244.0,0.26305935]
[1731781851288,0.15156853,91245.0,91244.0,0.22365855]
[1731781853574,0.15156853,91245.0,91244.0,0.33132614]
[1731781853817,0.08312704,91245.0,91244.0,0.36497057]
[1731781854057,0.08312704,91245.0,91244.0,0.30635427]
[1731781854606,0.08312704,91245.0,91244.0,0.30435427]
[1731781856202,0.08312704,91245.0,91244.0,0.30635427]
[1731781856950,0.08312704,91245.0,91244.0,0.30435427]
[1731781857377,0.08312704,91245.0,91244.0,0.26695347]
[1731781857598,0.08312704,91245.0,91244.0,0.23111749]
[1731781858257,0.08312704,91245.0,91244.0,0.30633487]
[1731781858482,0.08312704,91245.0,91244.0,0.40606477]
[1731781858698,0.08312704,91245.0,91244.0,0.33084739]
[1731781858944,0.08312704,91245.0,91244.0,0.23111749]
[1731781860579,0.08312704,91245.0,91244.0,0.22911749]
[1731781860787,0.03385223,91245.0,91244.0,0.22911749]
[1731781862058,0.03385223,91245.0,91244.0,0.23111749]
[1731781862772,0.03385223,91245.0,91244.0,0.26912538]
[1731781863042,6.716e-05,91249.0,91248.0,0.01074614]
[1731781863298,0.17358509,91251.0,91250.0,0.21806504]
[1731781863503,0.17358509,91251.0,91250.0,0.32912759]
[1731781863697,0.17922848,91251.0,91250.0,0.40434497]
[1731781863899,0.17358509,91251.0,91250.0,0.40234497]
[1731781864104,0.17358509,91251.0,91250.0,0.40434497]
[1731781864970,0.17358509,91251.0,91250.0,0.24810285]
[1731781865180,0.17444139,91251.0,91250.0,0.35569185]
[1731781865396,0.04293339,91251.0,91250.0,0.35594185]
[1731781865596,3.9e-07,91251.0,91250.0,0.35594185]
[1731781865724,0.0008573,91258.0,91254.0,0.002]
[1731781865951,0.0008573,91258.0,91254.0,0.22064655]
[1731781866143,0.14475488,91255.0,91254.0,0.22064655]
[1731781866734,0.13911141,91255.0,91254.0,0.22064655]
[1731781867197,0.11449581,91255.0,91254.0,0.22064655]
[1731781867418,0.11449581,91255.0,91254.0,0.2429222]
[1731781867627,0.11449581,91255.0,91254.0,0.2867122]
[1731781868077,0.00491181,91255.0,91254.0,0.3864421]
[1731781868298,0.24734221,91261.0,91260.0,0.111577]
[1731781868513,0.24734221,91261.0,91260.0,0.32036945]
[1731781868719,0.00564359,91261.0,91260.0,0.32036945]
[1731781868924,0.16495752,91281.0,91268.0,0.111567]
[1731781869127,0.16495752,91281.0,91268.0,0.41734129]
[1731781869345,0.16495752,91298.0,91268.0,0.32035945]
[1731781869585,0.16495752,91298.0,91268.0,0.41734129]
[1731781869796,0.16495752,91298.0,91268.0,0.32035945]
[1731781870011,0.16495752,91281.0,91268.0,0.32035945]
[1731781870224,0.16495752,91298.0,91268.0,0.32035945]
[1731781870433,0.16495752,91298.0,91268.0,0.31835945]
[1731781870639,0.16495752,91298.0,91268.0,0.41728613]
[1731781870855,0.16495752,91298.0,91268.0,0.32035945]
[1731781871309,0.16495752,91298.0,91268.0,0.4172571]
[1731781871525,0.16495752,91298.0,91268.0,0.32035945]
[1731781871730,0.20411363,91271.0,91270.0,0.111565]
[1731781871938,0.20411363,91271.0,91270.0,0.22062755]
[1731781872414,0.14254626,91271.0,91270.0,0.3174904]
[1731781872628,0.14254626,91271.0,91270.0,0.22062755]
[1731781873706,0.14740589,91271.0,91270.0,0.22062755]
[1731781874143,0.14254626,91271.0,91270.0,0.22062755]
[1731781874806,0.14254626,91271.0,91270.0,0.36610031]
[1731781875013,0.14254626,91271.0,91270.0,0.22062755]
[1731781876346,0.14254626,91271.0,91270.0,0.32035745]
[1731781876937,0.14254626,91271.0,91270.0,0.46583021]
[1731781877372,0.14254626,91271.0,91270.0,0.32035745]
[1731781877556,0.14340376,91271.0,91270.0,0.51024044]
[1731781877754,0.09551982,91271.0,91270.0,0.51024044]
[1731781878209,0.09551982,91271.0,91270.0,0.36476768]
[1731781878525,0.09551982,91271.0,91270.0,0.51024044]
[1731781878943,0.06131669,91271.0,91270.0,0.67072158]
[1731781879790,0.06131669,91271.0,91270.0,0.66072158]
[1731781880008,2e-08,91271.0,91270.0,0.66072158]
[1731781880430,2e-08,91271.0,91270.0,0.50004499]
[1731781880860,2e-08,91271.0,91270.0,0.80608828]
[1731781881079,3.002e-05,91274.0,91273.0,0.109561]
[1731781881316,3.002e-05,91274.0,91273.0,0.31547084]
[1731781881964,0.16495752,91298.0,91274.0,0.10956]
[1731781882191,0.16495752,91298.0,91274.0,0.21862255]
[1731781883318,0.16495752,91298.0,91274.0,0.31835245]
[1731781883526,0.178088,91275.0,91274.0,0.31835245]
[1731781885073,0.178088,91275.0,91274.0,0.21862255]
[1731781885284,0.08231328,91275.0,91274.0,0.21862255]
[1731781887701,0.08231328,91275.0,91274.0,0.51862255]
[1731781891070,0.12861328,91275.0,91274.0,0.51862255]
[1731781891297,0.12861328,91275.0,91274.0,0.40956]
[1731781891761,0.12861328,91275.0,91274.0,0.3]
[1731781892029,0.22971328,91275.0,91274.0,0.25]
[1731781892224,0.14691328,91275.0,91274.0,0.0438]
[1731781894025,0.12151328,91275.0,91274.0,0.0042]
[1731781895774,0.23107228,91275.0,91274.0,0.0042]
[1731781896205,0.12151328,91275.0,91274.0,0.0042]
[1731781896448,0.24107228,91275.0,91274.0,0.0042]
[1731781898753,0.35013483,91275.0,91274.0,0.0042]
[1731781899217,0.35013483,91275.0,91270.0,0.0017146]
[1731781899218,0.2442929,91271.0,91270.0,0.0017146]
[1731781899395,0.35554859,91271.0,91270.0,0.0017146]
[1731781899634,0.35335545,91271.0,91270.0,0.0017146]
[1731781901146,0.35835545,91271.0,91270.0,0.0017146]
[1731781902503,0.36335545,91271.0,91270.0,0.0017146]
[1731781904255,0.36335545,91271.0,91253.0,0.16495752]
[1731781904256,0.144584,91254.0,91253.0,0.16495752]
[1731781904479,0.35337645,91254.0,91253.0,0.16495752]
[1731781904713,0.25364655,91254.0,91253.0,0.16495752]
[1731781904940,0.25364655,91254.0,91244.0,0.0017128]
[1731781904941,0.111595,91245.0,91244.0,0.0017128]
[1731781905192,0.2393249,91245.0,91244.0,0.0017128]
[1731781905667,0.35338745,91245.0,91244.0,0.0017128]
[1731781907506,0.35838745,91245.0,91244.0,0.0017128]
[1731781908866,0.40233749,91245.0,91244.0,0.0017128]
[1731781910837,0.33038745,91245.0,91244.0,0.0017128]
[1731781911496,0.2213249,91245.0,91244.0,0.0017128]
[1731781911718,0.2163249,91245.0,91244.0,0.0017128]
[1731781911919,0.2213249,91245.0,91244.0,0.0017128]
[1731781912177,0.002,91245.0,91244.0,0.0017128]
[1731781912380,0.005,91251.0,91244.0,0.0017128]
[1731781912611,0.005,91251.0,91245.0,0.219188]
[1731781913085,0.005,91251.0,91250.0,0.109589]
[1731781913086,0.002,91251.0,91250.0,0.109589]
[1731781913291,0.005,91257.0,91245.0,0.21919]
[1731781913292,0.007,91257.0,91245.0,0.21919]
[1731781913501,0.03,91257.0,91256.0,0.109581]
[1731781913705,0.03,91257.0,91253.0,0.109585]
[1731781913926,0.023,91256.0,91253.0,0.109585]
[1731781914144,0.025,91254.0,91253.0,0.109585]
[1731781914352,0.109574,91262.0,91251.0,0.16495752]
[1731781914353,0.002,91262.0,91251.0,0.16495752]
[1731781914545,0.005,91265.0,91248.0,0.04969155]
[1731781914546,0.002,91261.0,91260.0,0.109576]
[1731781914807,0.002,91258.0,91248.0,0.15656255]
[1731781915027,0.002,91258.0,91256.0,0.109581]
[1731781915238,0.007,91258.0,91257.0,0.10958]
[1731781915691,0.03,91258.0,91257.0,0.10958]
[1731781916375,0.002,91255.0,91254.0,0.109584]
[1731781918542,0.002,91265.0,91264.0,0.109572]
[1731781918765,0.002,91265.0,91264.0,0.19476309]
[1731781919191,0.002,91265.0,91264.0,0.192572]
[1731781919620,0.002,91265.0,91262.0,0.11421837]
[1731781919882,0.002,91262.0,91261.0,0.109575]
[1731781920550,0.025,91262.0,91261.0,0.109575]
[1731781923880,0.023,91261.0,91248.0,0.1305]
[1731781924079,0.023,91261.0,91254.0,0.219168]
[1731781924337,0.023,91261.0,91256.0,0.10958]
[1731781924829,0.023,91261.0,91256.0,0.109581]
[1731781925256,0.023,91246.0,91241.0,0.27455652]
[1731781925470,0.023,91246.0,91241.0,0.16495752]
[1731781925673,0.005,91247.0,91241.0,0.16495752]
[1731781925674,0.023,91245.0,91242.0,0.109598]
[1731781925911,0.023,91246.0,91241.0,0.16495752]
[1731781926122,0.023,91246.0,91245.0,0.109595]
[1731781926593,0.025,91245.0,91244.0,0.0017128]
[1731781926865,0.03,91245.0,91244.0,0.0017128]
[1731781927083,0.14678814,91245.0,91244.0,0.0017128]
[1731781927721,0.35558059,91245.0,91244.0,0.0017128]
[1731781927960,0.25365755,91245.0,91244.0,0.0017128]
[1731781928195,0.25585069,91245.0,91244.0,0.0017128]
[1731781928885,0.33675069,91245.0,91244.0,0.0017128]
[1731781929097,0.33675069,91245.0,91240.0,4.1]
[1731781929098,0.254599,91241.0,91240.0,4.0187128]
[1731781929326,0.36585469,91241.0,91240.0,4.0187128]
[1731781929546,0.36366155,91241.0,91240.0,4.0187128]
[1731781930004,0.36366155,91241.0,91240.0,3.96835334]
[1731781930212,0.36566155,91241.0,91240.0,3.96835334]
[1731781930640,0.46539145,91241.0,91240.0,3.96835334]
[1731781930850,0.36566155,91241.0,91240.0,3.96835334]
[1731781931293,0.41065924,91241.0,91240.0,3.96835334]
[1731781931498,0.51038914,91241.0,91240.0,3.96835334]
[1731781931715,0.41065924,91241.0,91240.0,3.96835334]
[1731781932642,1.04968914,91241.0,91240.0,3.20945291]
[1731781933523,1.04968914,91241.0,91240.0,3.14369291]
[1731781933764,0.94995924,91241.0,91240.0,3.09985291]
[1731781934458,0.94795924,91241.0,91240.0,3.09985291]
[1731781934672,0.23866155,91241.0,91240.0,3.09985291]
[1731781934884,0.24085469,91241.0,91240.0,3.09985291]
[1731781935112,0.24285469,91241.0,91240.0,3.09985291]
[1731781935334,0.22785469,91241.0,91240.0,3.09985291]
[1731781935553,0.23066155,91241.0,91240.0,3.09985291]
[1731781935993,0.121599,91241.0,91240.0,3.09985291]
[1731781937339,0.012,91241.0,91240.0,3.09985291]
[1731781937642,0.005,91242.0,91240.0,3.09985291]
[1731781937832,0.005,91253.0,91252.0,0.109585]
[1731781938074,0.0008573,91262.0,91258.0,0.219158]
[1731781938075,0.0078573,91262.0,91258.0,0.219158]
[1731781938289,0.0078573,91262.0,91261.0,0.109575]
[1731781938290,0.0028573,91262.0,91261.0,0.109575]
[1731781938708,0.0028573,91262.0,91261.0,0.187975]
[1731781943452,0.0078573,91262.0,91261.0,0.0784]
[1731781943664,0.0078573,91262.0,91259.0,0.0455]
[1731781943665,0.116577,91260.0,91259.0,0.0455]
[1731781944126,0.139577,91260.0,91259.0,0.0455]
[1731781944358,0.002,91251.0,91250.0,0.0794]
[1731781944794,0.005,91249.0,91243.0,0.0468]
[1731781945006,0.005,91249.0,91244.0,0.219192]
[1731781945243,0.005,91249.0,91248.0,0.109591]
[1731781950088,0.27453652,91259.0,91254.0,0.109584]
[1731781950089,0.002,91255.0,91254.0,0.109584]
[1731781950292,0.1104313,91262.0,91245.0,0.00219178]
[1731781950293,0.002,91258.0,91245.0,0.00219178]
[1731781950516,0.16695752,91258.0,91257.0,0.10958]
[1731781950741,0.002,91258.0,91257.0,0.10958]
[1731781951149,0.002,91258.0,91246.0,0.219187]
[1731781951419,0.002,91251.0,91250.0,0.109589]
[1731781953226,0.005,91253.0,91239.0,0.219202]
[1731781953464,0.005,91253.0,91241.0,0.16495752]
[1731781953700,0.002,91252.0,91251.0,0.109587]
[1731781953922,0.005,91253.0,91241.0,0.16495752]
[1731781953923,0.002,91243.0,91241.0,0.16495752]
[1731781954147,0.00219314,91261.0,91241.0,0.16495752]
[1731781954148,0.005,91248.0,91241.0,0.16495752]
[1731781954371,0.002,91242.0,91241.0,0.109599]
[1731781954575,0.005,91247.0,91246.0,0.109593]
[1731781954780,0.007,91247.0,91246.0,0.109593]
[1731781954989,0.002,91241.0,91240.0,3.33736851]
[1731781955202,0.005,91247.0,91240.0,3.22776751]
[1731781955422,0.005,91247.0,91246.0,0.109593]
[1731781956580,0.005,91253.0,91252.0,0.109586]
[1731781957518,0.005,91254.0,91253.0,0.109585]
[1731781957998,0.005,91254.0,91251.0,0.219175]
[1731781957999,0.005,91253.0,91247.0,0.219183]
[1731781958246,0.005,91248.0,91243.0,0.219194]
[1731781958474,0.005,91248.0,91241.0,0.16495752]
[1731781958945,0.005,91248.0,91237.0,0.09953542]
[1731781958946,0.005,91248.0,91247.0,0.109592]
[1731781960814,0.005,91248.0,91245.0,0.109594]
[1731781961489,0.005,91248.0,91246.0,0.109593]
[1731781961715,0.005,91248.0,91237.0,0.09953542]
[1731781961940,0.005,91248.0,91245.0,0.109593]
[1731781962849,0.005,91248.0,91247.0,0.109592]
[1731781964292,0.005,91248.0,91244.0,0.219192]
[1731781964293,0.005,91248.0,91242.0,0.109597]
[1731781964509,0.005,91248.0,91241.0,0.0008575]
[1731781964703,0.005,91248.0,91246.0,0.109593]
[1731781966070,0.005,91247.0,91246.0,0.109593]
[1731781966291,0.111303,91251.0,91246.0,0.109593]
[1731781966516,0.111303,91251.0,91244.0,0.109595]
[1731781966763,0.111303,91251.0,91243.0,0.219194]
[1731781966974,0.111303,91251.0,91245.0,0.109594]
[1731781967879,0.224178,91250.0,91242.0,0.109598]
[1731781968146,0.109592,91247.0,91241.0,0.0008575]
[1731781968614,0.21918,91249.0,91241.0,0.0008575]
[1731781968615,0.109591,91249.0,91241.0,0.1104565]
[1731781968807,0.109593,91247.0,91241.0,0.1104565]
[1731781969336,0.32877,91249.0,91242.0,0.109598]
[1731781969788,0.10959,91249.0,91242.0,0.109598]
[1731781970006,0.10959,91249.0,91243.0,0.109597]
[1731781970273,0.005,91250.0,91245.0,0.109594]
[1731781970492,0.111303,91251.0,91244.0,0.109595]
[1731781970493,0.09165929,91251.0,91244.0,0.109595]
[1731781970715,0.21918,91249.0,91241.0,0.0008575]
[1731781971168,0.109593,91246.0,91241.0,0.0008575]
[1731781971392,0.109592,91247.0,91241.0,0.1104565]
[1731781971625,0.10959,91249.0,91241.0,0.0008575]
[1731781971902,0.109591,91248.0,91243.0,0.109596]
[1731781973079,0.00219314,91253.0,91241.0,0.0008575]
[1731781973529,0.109592,91248.0,91241.0,0.1104555]
[1731781973760,0.10959,91250.0,91242.0,0.109598]
[1731781973976,0.10959,91249.0,91243.0,0.109596]
[1731781975369,0.10959,91249.0,91241.0,0.0008575]
[1731781975370,0.10959,91249.0,91244.0,0.109596]
[1731781976303,0.1104485,91248.0,91242.0,0.111313]
[1731781976540,0.0008575,91248.0,91243.0,0.219194]
[1731781976771,0.0008575,91248.0,91242.0,0.001715]
[1731781976772,0.0008575,91248.0,91245.0,0.109594]
[1731781979291,0.0008575,91248.0,91245.0,0.219188]
[1731781979564,0.0008575,91248.0,91247.0,0.109592]
[1731781980467,0.0008575,91248.0,91245.0,0.219188]
[1731781980677,0.0008575,91248.0,91247.0,0.109592]
[1731781981112,0.023,91256.0,91245.0,0.04354972]
[1731781981326,0.109585,91254.0,91246.0,0.109593]
[1731781981539,0.219166,91255.0,91244.0,0.09760233]
[1731781981766,0.219173,91252.0,91243.0,0.109597]
[1731781981976,0.109597,91243.0,91242.0,0.001715]
[1731781984714,0.11179014,91243.0,91242.0,0.001715]
[1731781984936,0.11179014,91243.0,91231.0,0.07659899]
[1731781984937,0.10961,91232.0,91231.0,0.07659899]
[1731781985365,0.08496084,91232.0,91231.0,0.07659899]
[1731781985818,0.109611,91231.0,91230.0,0.3]
[1731781990314,0.219217,91234.0,91230.0,0.3]
[1731781990315,0.005,91253.0,91231.0,0.0772]
[1731781990546,0.109586,91253.0,91246.0,0.109593]
[1731781990771,0.109585,91253.0,91246.0,0.186793]
[1731781990989,0.109586,91253.0,91247.0,0.109592]
[1731781991276,0.219167,91255.0,91246.0,0.1271]
[1731781991277,0.10959,91249.0,91246.0,0.1271]
[1731781992688,0.109592,91247.0,91246.0,0.1271]
[1731781992902,0.109592,91247.0,91235.0,0.14640349]
[1731781992903,0.109606,91236.0,91233.0,0.16495752]
[1731781993365,0.109606,91236.0,91230.0,0.34455099]
[1731781993366,0.109603,91238.0,91234.0,0.0772]
[1731781994014,0.109607,91235.0,91234.0,0.0772]
[1731781995179,0.19985096,91267.0,91234.0,0.0772]
[1731781995180,0.1096,91241.0,91234.0,0.0772]
[1731781995438,0.219175,91252.0,91241.0,0.109599]
[1731781995649,0.109596,91244.0,91237.0,0.219209]
[1731781995876,0.109596,91244.0,91236.0,0.09953542]
[1731781995877,0.11178914,91244.0,91238.0,0.109603]
[1731781996117,0.109596,91244.0,91239.0,0.109601]
[1731781996390,0.16495752,91240.0,91239.0,0.109601]
[1731781996597,0.16495752,91240.0,91230.0,0.3]
[1731781996598,0.109611,91231.0,91230.0,0.3]
[1731781996810,0.00219314,91232.0,91230.0,0.25857533]
[1731781997066,0.242187,91246.0,91230.0,0.36818733]
[1731781997296,0.109611,91232.0,91230.0,0.25857533]
[1731781997510,0.11180414,91231.0,91230.0,0.25857533]
[1731781998147,0.11180414,91231.0,91230.0,0.24517529]
[1731782000397,0.11180414,91231.0,91230.0,0.24689049]
[1731782001302,0.13480414,91231.0,91230.0,0.24689049]
[1731782001564,0.109611,91231.0,91230.0,0.24689049]
[1731782004023,0.132611,91231.0,91230.0,0.24689049]
[1731782004234,0.13480414,91231.0,91230.0,0.24689049]
[1731782004449,0.24386669,91231.0,91230.0,0.24689049]
[1731782008675,0.132611,91231.0,91230.0,0.24689049]
[1731782008914,0.109611,91231.0,91230.0,0.32839049]
[1731782009542,0.2200716,91235.0,91230.0,0.32839049]
[1731782009793,0.0008576,91235.0,91230.0,0.32839049]
[1731782010326,0.0008576,91235.0,91231.0,0.219223]
[1731782010538,0.00219314,91240.0,91230.0,0.32839049]
[1731782010768,0.109605,91237.0,91230.0,0.43800249]
[1731782011240,0.219204,91239.0,91230.0,0.43800249]
[1731782011447,0.109607,91235.0,91230.0,0.43800249]
[1731782011872,0.109601,91240.0,91233.0,0.109608]
[1731782012092,0.109605,91237.0,91230.0,0.32839049]
[1731782012304,0.109605,91237.0,91231.0,0.109611]
[1731782012971,0.0008576,91235.0,91231.0,0.109611]
[1731782013181,0.0008576,91235.0,91232.0,0.10961]
[1731782013823,0.0008576,91235.0,91230.0,0.32839049]
[1731782014236,0.0008576,91235.0,91234.0,0.109608]
[1731782014239,0.0008576,91235.0,91234.0,0.34014342]
[1731782014458,0.0008576,91235.0,91234.0,0.44920597]
[1731782014889,0.16495752,91246.0,91245.0,0.109595]
[1731782015392,0.109588,91251.0,91244.0,0.109595]
[1731782015611,0.16495752,91245.0,91238.0,0.109602]
[1731782015822,0.109594,91246.0,91240.0,0.1096]
[1731782016047,0.00219314,91245.0,91241.0,0.109599]
[1731782016733,0.00219314,91247.0,91239.0,0.219204]
[1731782016945,0.00219314,91247.0,91242.0,0.109598]
[1731782017649,0.00219314,91247.0,91237.0,0.219209]
[1731782017858,0.22138014,91247.0,91239.0,0.109601]
[1731782018070,0.109595,91245.0,91239.0,0.109601]
[1731782018319,0.00219314,91244.0,91236.0,0.109604]
[1731782018550,0.00219314,91246.0,91234.0,0.131]
[1731782018763,0.00219314,91246.0,91238.0,0.109603]
[1731782018764,0.109596,91244.0,91238.0,0.109603]
[1731782019212,0.00219314,91246.0,91236.0,0.109605]
[1731782019213,0.1096,91241.0,91236.0,0.109605]
[1731782019443,0.109602,91240.0,91234.0,0.131]
[1731782019654,0.11179014,91243.0,91235.0,0.109607]
[1731782019866,0.11179014,91243.0,91237.0,0.109604]
[1731782020080,0.00219314,91243.0,91234.0,0.240607]
[1731782020320,0.109602,91239.0,91234.0,0.131]
[1731782020575,0.00219314,91238.0,91234.0,0.131]
[1731782020845,0.00219314,91244.0,91234.0,0.131]
[1731782021079,0.109602,91240.0,91234.0,0.240607]
[1731782021320,0.11179514,91239.0,91234.0,0.240607]
[1731782022417,0.11179514,91239.0,91234.0,0.235662]
[1731782022635,0.00219314,91239.0,91234.0,0.126055]
[1731782022851,0.16495752,91244.0,91234.0,0.126055]
[1731782022852,0.109607,91235.0,91234.0,0.126055]
[1731782024648,0.109607,91235.0,91234.0,0.12534342]
[1731782024858,0.109607,91235.0,91234.0,0.07724342]
[1731782026410,0.109607,91235.0,91232.0,0.0017152]
[1731782026411,0.109609,91233.0,91232.0,0.0017152]
[1731782026621,0.11180214,91233.0,91232.0,0.0017152]
[1731782028636,0.00219314,91234.0,91232.0,0.0017152]
[1731782028865,0.109609,91233.0,91232.0,0.0017152]
[1731782031358,0.108609,91233.0,91232.0,0.0017152]
[1731782032458,0.08396073,91233.0,91232.0,0.0017152]
[1731782036437,0.08396073,91233.0,91228.0,0.14364368]
[1731782036669,0.00219314,91232.0,91228.0,0.14364368]
[1731782036897,0.08396073,91233.0,91228.0,0.14364368]
[1731782037132,0.00119314,91232.0,91228.0,0.14364368]
[1731782037826,0.00119314,91232.0,91229.0,0.219228]
[1731782038037,0.0008576,91239.0,91228.0,0.03402868]
[1731782038038,0.00119314,91238.0,91228.0,0.03402868]
[1731782038258,0.109607,91235.0,91230.0,0.109612]
[1731782038479,0.00119314,91234.0,91230.0,0.109612]
[1731782038928,0.00119314,91234.0,91228.0,0.03402868]
[1731782039423,0.109612,91231.0,91228.0,0.03402868]
[1731782039655,0.11080514,91231.0,91228.0,0.03402868]
[1731782039875,0.109612,91231.0,91228.0,0.03402868]
[1731782040084,0.109609,91233.0,91228.0,0.03402868]
[1731782040320,0.00119314,91232.0,91228.0,0.03402868]
[1731782040541,0.11080314,91232.0,91228.0,0.03402868]
[1731782040784,0.109613,91230.0,91228.0,0.03402868]
[1731782041037,0.00119314,91232.0,91228.0,0.03402868]
[1731782041486,0.10961,91232.0,91228.0,0.03402868]
[1731782041701,0.00119314,91231.0,91228.0,0.03402868]
[1731782041911,0.00119314,91231.0,91230.0,0.109613]
[1731782042132,0.00205064,91235.0,91234.0,0.109608]
[1731782042378,0.0008575,91235.0,91234.0,0.048]
[1731782044214,0.0008575,91235.0,91234.0,0.109608]
[1731782045556,0.0008575,91235.0,91232.0,0.10961]
[1731782045758,0.0008575,91235.0,91229.0,0.219226]
[1731782045978,0.0008575,91235.0,91228.0,0.03402868]
[1731782046218,0.109611,91232.0,91228.0,0.03402868]
[1731782046428,0.00119314,91231.0,91228.0,0.03402868]
[1731782046641,0.11080514,91231.0,91228.0,0.03402868]
[1731782047532,0.11080514,91231.0,91221.0,0.219246]
[1731782047533,0.109622,91222.0,91221.0,0.0824]
[1731782048690,0.109618,91226.0,91221.0,0.0824]
[1731782048964,0.109617,91227.0,91221.0,0.0824]
[1731782049203,0.109611,91232.0,91226.0,0.109617]
[1731782049423,0.27456852,91232.0,91226.0,0.109617]
[1731782049640,0.109614,91230.0,91224.0,0.10962]
[1731782050302,0.00119314,91231.0,91222.0,0.219245]
[1731782050513,0.11080514,91231.0,91225.0,0.109619]
[1731782050991,0.00119314,91231.0,91224.0,0.109619]
[1731782051490,0.00119314,91231.0,91223.0,0.10962]
[1731782051491,0.109615,91228.0,91223.0,0.10962]
[1731782051700,0.109617,91227.0,91221.0,0.193738]
[1731782051919,0.109614,91229.0,91222.0,0.109622]
[1731782052146,0.0008575,91232.0,91221.0,0.084115]
[1731782052147,0.00119314,91230.0,91221.0,0.084115]
[1731782052359,0.109615,91228.0,91223.0,0.109621]
[1731782053445,0.16581502,91232.0,91221.0,0.303362]
[1731782053446,0.109622,91222.0,91221.0,0.084115]
[1731782053666,0.109622,91223.0,91221.0,0.084115]
[1731782053898,0.109622,91222.0,91221.0,0.084115]
[1731782054138,0.00119314,91224.0,91221.0,0.084115]
[1731782054352,0.109618,91226.0,91221.0,0.084115]
[1731782054592,0.109616,91227.0,91221.0,0.084115]
[1731782054820,0.109615,91229.0,91221.0,0.084115]
[1731782055039,0.219226,91230.0,91221.0,0.084115]
[1731782055547,0.219233,91227.0,91221.0,0.084115]
[1731782055766,0.219226,91230.0,91221.0,0.084115]
[1731782055767,0.109618,91226.0,91221.0,0.084115]
[1731782055981,0.328842,91229.0,91221.0,0.084115]
[1731782056212,0.219226,91230.0,91221.0,0.084115]
[1731782056473,0.109619,91225.0,91221.0,0.084115]
[1731782056679,0.219226,91230.0,91221.0,0.084115]
[1731782057146,0.109616,91227.0,91221.0,0.084115]
[1731782057582,0.21923,91228.0,91221.0,0.084115]
[1731782057806,0.109619,91225.0,91221.0,0.084115]
[1731782058482,0.16581502,91232.0,91221.0,0.193738]
[1731782058722,0.109618,91226.0,91221.0,0.193738]
[1731782059600,0.328839,91230.0,91221.0,0.084115]
[1731782059812,0.16581502,91232.0,91226.0,0.109617]
[1731782060040,0.16581502,91232.0,91221.0,0.084115]